fUST/lending_fUST_20250423
["ID","MTS","AMOUNT","RATE_DAILY","PERIOD"]
[358738729,1745406677286,-500.0,0.0002155,2]
[358738730,1745406677295,-500.0,0.0002155,2]
[358738731,1745406677305,-500.0,0.0002155,2]
[358738732,1745406677315,-534.32,0.0002155,2]
[358738733,1745406677324,-3671.34,0.0002155,2]
[358738734,1745406677334,-500.0,0.0002155,2]
[358738735,1745406677343,-500.0,0.0002155,2]
[358738736,1745406677354,-500.0,0.0002155,2]
[358738737,1745406677364,-500.0,0.0002155,2]
[358738738,1745406677374,-500.0,0.0002155,2]
[358738739,1745406677383,-500.0,0.0002155,2]
[358738740,1745406677393,-500.0,0.0002155,2]
[358738741,1745406677403,-500.0,0.0002155,2]
[358738742,1745406677412,-500.0,0.0002155,2]
[358738743,1745406677422,-500.0,0.0002155,2]
[358738744,1745406677431,-500.0,0.0002155,2]
[358738745,1745406677441,-500.0,0.0002155,2]
[358738746,1745406677451,-500.0,0.0002155,2]
[358738747,1745406677461,-506.02875352,0.0002155,2]
[358738748,1745406677471,-498.30765269,0.0002155,2]
[358738749,1745406677480,-816.63,0.00021552,2]
[358738750,1745406677490,-500.0,0.00021552,2]
[358738751,1745406677501,-500.0,0.00021552,2]
[358738752,1745406677510,-608.51,0.00021552,2]
[358738753,1745406677519,-500.0,0.00021552,2]
[358738754,1745406677529,-500.0,0.00021552,2]
[358738755,1745406677538,-395.53149251,0.00021552,2]
[358738756,1745406677548,-500.0,0.00021552,2]
[358738757,1745406677558,-787.01,0.00021552,2]
[358738758,1745406677567,-500.0,0.00021552,2]
[358738759,1745406677576,-500.0,0.00021552,2]
[358738760,1745406677586,-500.0,0.00021552,2]
[358738761,1745406677595,-500.0,0.00021552,2]
[358738762,1745406677605,-500.0,0.00021552,2]
[358738763,1745406677614,-500.0,0.00021553,2]
[358738764,1745406677623,-517.81,0.00021553,2]
[358738765,1745406677632,-500.0,0.00021553,2]
[358738766,1745406677641,-500.0,0.00021555,2]
[358738767,1745406677650,-507.89672097,0.00021555,2]
[358738768,1745406677659,-500.0,0.00021555,2]
[358738769,1745406677668,-500.0,0.00021555,2]
[358738770,1745406677677,-500.0,0.00021555,2]
[358738771,1745406677686,-500.0,0.00021555,2]
[358738772,1745406677694,-500.0,0.00021555,2]
[358738773,1745406677703,-500.0,0.00021555,2]
[358738774,1745406677713,-500.0,0.00021555,2]
[358738775,1745406677722,-500.0,0.00021555,2]
[358738776,1745406677731,-500.0,0.00021555,2]
[358738777,1745406677740,-500.0,0.00021555,2]
[358738778,1745406677750,-500.0,0.00021555,2]
[358738779,1745406677759,-500.0,0.00021555,2]
[358738780,1745406677768,-500.0,0.00021555,2]
[358738781,1745406677777,-500.0,0.00021555,2]
[358738782,1745406677787,-500.0,0.00021555,2]
[358738783,1745406677796,-500.0,0.00021555,2]
[358738784,1745406677805,-500.0,0.00021555,2]
[358738785,1745406677815,-600.0,0.00021616,2]
[358738786,1745406677825,-420.0,0.00021673,2]
[358738787,1745406677836,-1260.0,0.00021777,2]
[358738788,1745406677845,-500.0,0.00021822,2]
[358738789,1745406677854,-500.0,0.00021822,2]
[358738790,1745406677864,-500.0,0.00021822,2]
[358738791,1745406677873,-500.0,0.00021822,2]
[358738792,1745406677882,-1233.74,0.00021822,2]
[358738793,1745406677892,-500.0,0.00021822,2]
[358738794,1745406677903,-500.0,0.00021822,2]
[358738795,1745406677913,-500.0,0.00021822,2]
[358738796,1745406677922,-1063.73,0.00021822,2]
[358738797,1745406677933,-500.0,0.00021822,2]
[358738798,1745406677944,-500.0,0.00021822,2]
[358738799,1745406677954,-500.0,0.00021822,2]
[358738800,1745406677965,-500.0,0.00021822,2]
[358738801,1745406677974,-500.0,0.00021822,2]
[358738802,1745406677983,-1565.82,0.00021822,2]
[358738803,1745406677993,-500.0,0.00021822,2]
[358738804,1745406678003,-500.0,0.00021822,2]
[358738805,1745406678012,-2600.73,0.00021822,2]
[358738806,1745406678022,-500.0,0.00021822,2]
[358738807,1745406678031,-500.0,0.00021822,2]
[358738808,1745406678041,-500.0,0.00021822,2]
[358738809,1745406678050,-500.0,0.00021822,2]
[358738810,1745406678060,-500.0,0.00021822,2]
[358738811,1745406678071,-500.0,0.00021822,2]
[358738812,1745406678081,-500.0,0.00021822,2]
[358738813,1745406678091,-6139.88,0.00021822,2]
[358738814,1745406678100,-3428.99,0.00021822,2]
[358738815,1745406678110,-610.39,0.00021822,2]
[358738816,1745406678120,-500.0,0.00021822,2]
[358738817,1745406678129,-500.0,0.00021822,2]
[358738818,1745406678139,-500.0,0.00021822,2]
[358738819,1745406678149,-582.2,0.00021822,2]
[358738820,1745406678158,-500.0,0.00021822,2]
[358738821,1745406678172,-500.0,0.00021822,2]
[358738822,1745406678181,-2287.57,0.00021822,2]
[358738823,1745406678191,-500.0,0.00021822,2]
[358738824,1745406678201,-500.0,0.00021822,2]
[358738825,1745406678212,-500.0,0.00021823,2]
[358738826,1745406678222,-507.33,0.00021823,2]
[358738827,1745406678232,-500.0,0.00021823,2]
[358738828,1745406678241,-500.0,0.00021823,2]
[358738829,1745406678252,-500.0,0.00021823,2]
[358738830,1745406678263,-500.0,0.00021823,2]
[358738831,1745406678272,-1754.3,0.00021823,2]
[358738832,1745406678283,-500.0,0.00021823,2]
[358738833,1745406678292,-647.6,0.00021823,2]
[358738834,1745406678303,-871.23,0.00021823,2]
[358738835,1745406678312,-500.0,0.00021823,2]
[358738836,1745406678321,-500.0,0.00021824,2]
[358738837,1745406678331,-500.0,0.00021824,2]
[358738838,1745406678340,-500.0,0.00021824,2]
[358738839,1745406678350,-500.0,0.00021824,2]
[358738840,1745406678360,-500.0,0.00021824,2]
[358738841,1745406678370,-500.0,0.00021824,2]
[358738842,1745406678381,-500.0,0.00021824,2]
[358738843,1745406678391,-591.74,0.00021824,2]
[358738844,1745406678401,-553.83,0.00021824,2]
[358738845,1745406678411,-643.42241323,0.00021824,2]
[358738846,1745406678421,-500.0,0.00021824,2]
[358738847,1745406678431,-500.0,0.00021824,2]
[358738848,1745406678441,-500.0,0.00021824,2]
[358738849,1745406678451,-500.0,0.00021824,2]
[358738850,1745406678461,-500.0,0.00021824,2]
[358738851,1745406678471,-214.61241406,0.00021824,2]
[358738852,1745406678480,-500.0,0.00021824,2]
[358738853,1745406678490,-500.0,0.00021824,2]
[358738854,1745406678499,-500.0,0.00021824,2]
[358738855,1745406678508,-500.0,0.00021824,2]
[358738856,1745406678517,-500.0,0.00021824,2]
[358738857,1745406678526,-512.74,0.00021824,2]
[358738858,1745406678536,-500.0,0.00021824,2]
[358738859,1745406678546,-516.59034905,0.00021824,2]
[358738860,1745406678556,-500.0,0.00021824,2]
[358738861,1745406678565,-500.0,0.00021824,2]
[358738862,1745406678574,-500.0,0.00021824,2]
[358738863,1745406678584,-500.0,0.00021824,2]
[358738864,1745406678593,-500.0,0.00021824,2]
[358738865,1745406678602,-500.0,0.00021824,2]
[358738866,1745406678612,-500.0,0.00021824,2]
[358738867,1745406678621,-387.46,0.00021824,2]
[358738868,1745406678631,-624.11636271,0.00021824,2]
[358738869,1745406678641,-500.0,0.00021824,2]
[358738870,1745406678651,-500.0,0.00021824,2]
[358738871,1745406678758,-500.0,0.00021824,2]
[358738872,1745406678777,-500.0,0.00021824,2]
[358738873,1745406678786,-500.0,0.00021824,2]
[358738874,1745406678795,-500.0,0.00021824,2]
[358738875,1745406678805,-500.0,0.00021824,2]
[358738876,1745406678814,-500.0,0.00021824,2]
[358738877,1745406678824,-500.0,0.00021824,2]
[358738878,1745406678834,-500.0,0.00021824,2]
[358738879,1745406678844,-500.0,0.00021824,2]
[358738880,1745406678853,-434.76113075,0.00021824,2]
[358738881,1745406678862,-500.0,0.00021824,2]
[358738882,1745406678872,-500.0,0.00021824,2]
[358738883,1745406678882,-500.0,0.00021824,2]
[358738884,1745406678892,-500.0,0.00021824,2]
[358738885,1745406678901,-507.53538762,0.00021824,2]
[358738886,1745406678911,-500.0,0.00021824,2]
[358738887,1745406678920,-500.0,0.00021824,2]
[358738888,1745406678930,-500.0,0.00021824,2]
[358738889,1745406678939,-500.0,0.00021824,2]
[358738890,1745406678949,-500.11,0.00021824,2]
[358738891,1745406678961,-500.0,0.00021824,2]
[358738892,1745406678971,-500.0,0.00021824,2]
[358738893,1745406678980,-500.0,0.00021824,2]
[358738894,1745406678990,-531.44,0.00021824,2]
[358738895,1745406679000,-500.0,0.00021824,2]
[358738896,1745406679009,-500.0,0.00021824,2]
[358738897,1745406679019,-500.0,0.00021824,2]
[358738898,1745406679028,-500.0,0.00021824,2]
[358738899,1745406679038,-335.34709755,0.00021824,2]
[358738900,1745406679048,-544.88,0.00021824,2]
[358738901,1745406679058,-298.20683451,0.00021824,2]
[358738902,1745406679067,-500.0,0.00021824,2]
[358738903,1745406679077,-500.0,0.00021824,2]
[358738904,1745406679087,-224.45774417,0.00021824,2]
[358738905,1745406679097,-500.0,0.00021824,2]
[358738906,1745406679107,-2820.05,0.00021824,2]
[358738907,1745406679117,-500.0,0.00021824,2]
[358738908,1745406679127,-500.0,0.00021824,2]
[358738909,1745406679137,-425.12,0.00021824,2]
[358738910,1745406679147,-558.75,0.00021824,2]
[358738911,1745406679156,-500.0,0.00021824,2]
[358738912,1745406679170,-500.0,0.00021824,2]
[358738913,1745406679182,-500.0,0.00021824,2]
[358738914,1745406679191,-530.63434442,0.00021824,2]
[358738915,1745406679201,-500.0,0.00021824,2]
[358738916,1745406679211,-621.39,0.00021824,2]
[358738917,1745406679220,-599.45,0.00021824,2]
[358738918,1745406679231,-500.0,0.00021824,2]
[358738919,1745406679242,-500.0,0.00021824,2]
[358738920,1745406679253,-519.06383261,0.00021824,2]
[358738921,1745406679264,-506.55800925,0.00021824,2]
[358738922,1745406679275,-509.74709096,0.00021824,2]
[358738923,1745406679285,-1535.69,0.00021824,2]
[358738924,1745406679295,-500.0,0.00021824,2]
[358738925,1745406679305,-500.0,0.00021824,2]
[358738926,1745406679315,-500.0,0.00021824,2]
[358738927,1745406679326,-500.0,0.00021824,2]
[358738928,1745406679336,-508.52421491,0.00021824,2]
[358738929,1745406679347,-500.0,0.00021824,2]
[358738930,1745406679357,-500.0,0.00021824,2]
[358738931,1745406679367,-500.0,0.00021824,2]
[358738932,1745406679378,-500.0,0.00021824,2]
[358738933,1745406679389,-500.0,0.00021824,2]
[358738934,1745406679399,-500.0,0.00021824,2]
[358738935,1745406679408,-500.0,0.00021824,2]
[358738936,1745406679419,-500.0,0.00021824,2]
[358738937,1745406679429,-500.0,0.00021824,2]
[358738938,1745406679439,-500.0,0.00021824,2]
[358738939,1745406679448,-621.02727777,0.00021824,2]
[358738940,1745406679472,-500.0,0.00021824,2]
[358738941,1745406679492,-500.0,0.00021824,2]
[358738942,1745406679512,-500.0,0.00021824,2]
[358738943,1745406679532,-500.0,0.00021824,2]
[358738944,1745406679553,-500.0,0.00021824,2]
[358738945,1745406679572,-576.9479871,0.00021824,2]
[358738946,1745406679590,-506.96874842,0.00021824,2]
[358738947,1745406679605,-3671.34,0.00021824,2]
[358738948,1745406679625,-500.0,0.00021824,2]
[358738949,1745406679646,-500.0,0.00021824,2]
[358738950,1745406679663,-500.0,0.00021824,2]
[358738951,1745406679678,-500.0,0.00021824,2]
[358738952,1745406679697,-500.0,0.00021824,2]
[358738953,1745406679713,-500.0,0.00021824,2]
[358738954,1745406679728,-500.0,0.00021824,2]
[358738955,1745406679743,-500.0,0.00021824,2]
[358738956,1745406679760,-541.19856196,0.00021824,2]
[358738957,1745406679777,-500.0,0.00021824,2]
[358738958,1745406679794,-500.0,0.00021824,2]
[358738959,1745406679809,-500.0,0.00021824,2]
[358738960,1745406679825,-816.63,0.00021826,2]
[358738961,1745406679840,-500.0,0.00021826,2]
[358738962,1745406679856,-500.0,0.00021826,2]
[358738963,1745406679871,-500.0,0.00021826,2]
[358738964,1745406679887,-500.0,0.00021826,2]
[358738965,1745406679902,-500.0,0.00021826,2]
[358738966,1745406679918,-787.01,0.00021826,2]
[358738967,1745406679933,-500.0,0.00021826,2]
[358738968,1745406679949,-500.0,0.00021826,2]
[358738969,1745406679965,-500.0,0.00021826,2]
[358738970,1745406679980,-500.0,0.00021826,2]
[358738971,1745406679995,-500.0,0.00021826,2]
[358738972,1745406680011,-260.40821892,0.00021827,2]
[358738973,1745406680027,-517.81,0.00021827,2]
[358738974,1745406680043,-500.0,0.00021827,2]
[358738975,1745406680060,-500.0,0.00021829,2]
[358738976,1745406680075,-500.0,0.00021829,2]
[358738977,1745406680092,-500.0,0.00021829,2]
[358738978,1745406680108,-560.83,0.00021829,2]
[358738979,1745406680123,-500.0,0.00021829,2]
[358738980,1745406680140,-500.0,0.00021829,2]
[358738981,1745406680156,-500.0,0.00021829,2]
[358738982,1745406680174,-500.0,0.00021829,2]
[358738983,1745406680191,-500.0,0.00021829,2]
[358738984,1745406680207,-500.0,0.00021829,2]
[358738985,1745406680223,-500.0,0.00021829,2]
[358738986,1745406680239,-500.0,0.00021829,2]
[358738987,1745406680255,-500.0,0.00021829,2]
[358738988,1745406680270,-500.0,0.00021829,2]
[358738989,1745406680285,-500.0,0.00021829,2]
[358738990,1745406680300,-500.0,0.00021829,2]
[358738991,1745406680314,-500.0,0.00021917,2]
[358738992,1745406680323,-500.0,0.00021917,2]
[358738993,1745406680334,-500.0,0.00021917,2]
[358738994,1745406680344,-500.0,0.00021917,2]
[358738995,1745406680353,-505.67279254,0.00021917,2]
[358738996,1745406680363,-175.109194,0.00021918,2]
[358738997,1745406680372,-1302.2062606,0.00021918,7]
[358738998,1745406680381,-400.0,0.00021918,7]
[358738999,1745406680392,-151.0,0.00021918,2]
[358739000,1745406680402,-3583.84413045,0.00021969,3]
[358739001,1745406680412,-500.0,0.00022096,2]
[358739002,1745406680422,-500.0,0.00022096,2]
[358739003,1745406680432,-500.0,0.00022096,2]
[358739004,1745406680442,-500.0,0.00022096,2]
[358739005,1745406680452,-1233.74,0.00022096,2]
[358739006,1745406680462,-167.01383857,0.00022096,2]
[358739007,1745406680734,-500.0,0.00022096,2]
[358739008,1745406680749,-500.0,0.00022096,2]
[358739009,1745406680759,-1063.73,0.00022096,2]
[358739010,1745406680768,-500.0,0.00022096,2]
[358739011,1745406680778,-500.0,0.00022096,2]
[358739012,1745406680787,-500.0,0.00022096,2]
[358739013,1745406680797,-500.0,0.00022096,2]
[358739014,1745406680807,-500.0,0.00022096,2]
[358739015,1745406680816,-1565.82,0.00022096,2]
[358739016,1745406680826,-500.0,0.00022096,2]
[358739017,1745406680836,-2600.73,0.00022096,2]
[358739018,1745406680846,-500.0,0.00022096,2]
[358739019,1745406680855,-500.0,0.00022096,2]
[358739020,1745406680865,-500.0,0.00022096,2]
[358739021,1745406680874,-500.0,0.00022096,2]
[358739022,1745406680883,-500.0,0.00022096,2]
[358739023,1745406680893,-500.0,0.00022096,2]
[358739024,1745406680903,-6139.88,0.00022096,2]
[358739025,1745406680912,-3428.99,0.00022096,2]
[358739026,1745406680922,-610.39,0.00022096,2]
[358739027,1745406680931,-500.0,0.00022096,2]
[358739028,1745406680941,-500.0,0.00022096,2]
[358739029,1745406680950,-500.0,0.00022096,2]
[358739030,1745406680959,-582.2,0.00022096,2]
[358739031,1745406680968,-500.0,0.00022096,2]
[358739032,1745406680977,-500.0,0.00022096,2]
[358739033,1745406680986,-2287.57,0.00022096,2]
[358739034,1745406680996,-500.0,0.00022096,2]
[358739035,1745406681006,-500.0,0.00022096,2]
[358739036,1745406681015,-500.0,0.00022097,2]
[358739037,1745406681025,-507.33,0.00022097,2]
[358739038,1745406681034,-500.0,0.00022097,2]
[358739039,1745406681043,-297.42252296,0.00022097,2]
[358739040,1745406681052,-500.0,0.00022097,2]
[358739041,1745406681063,-1754.3,0.00022097,2]
[358739042,1745406681073,-500.0,0.00022097,2]
[358739043,1745406681083,-871.23,0.00022097,2]
[358739044,1745406681093,-500.0,0.00022097,2]
[358739045,1745406681102,-466.41934831,0.00022098,2]
[358739046,1745406681111,-351.60254651,0.00022098,2]
[358739047,1745406681120,-500.0,0.00022098,2]
[358739048,1745406681129,-500.0,0.00022098,2]
[358739049,1745406681139,-500.0,0.00022098,2]
[358739050,1745406681148,-500.0,0.00022098,2]
[358739051,1745406681158,-500.0,0.00022098,2]
[358739052,1745406681168,-500.0,0.00022098,2]
[358739053,1745406681180,-500.0,0.00022098,2]
[358739054,1745406681189,-500.0,0.00022098,2]
[358739055,1745406681199,-500.0,0.00022098,2]
[358739056,1745406681209,-186.13880258,0.00022098,2]
[358739057,1745406681219,-500.0,0.00022098,2]
[358739058,1745406681228,-512.74,0.00022098,2]
[358739059,1745406681238,-500.0,0.00022098,2]
[358739060,1745406681248,-500.0,0.00022098,2]
[358739061,1745406681258,-500.0,0.00022098,2]
[358739062,1745406681269,-500.0,0.00022098,2]
[358739063,1745406681278,-500.0,0.00022098,2]
[358739064,1745406681288,-500.0,0.00022098,2]
[358739065,1745406681297,-500.0,0.00022098,2]
[358739066,1745406681307,-500.0,0.00022098,2]
[358739067,1745406681316,-500.0,0.00022098,2]
[358739068,1745406681325,-500.0,0.00022098,2]
[358739069,1745406681336,-283.45563615,0.00022098,2]
[358739070,1745406681345,-500.0,0.00022098,2]
[358739071,1745406681354,-500.0,0.00022098,2]
[358739072,1745406681363,-500.0,0.00022098,2]
[358739073,1745406681372,-500.0,0.00022098,2]
[358739074,1745406681382,-500.0,0.00022098,2]
[358739075,1745406681391,-446.31,0.00022098,2]
[358739076,1745406681400,-500.0,0.00022098,2]
[358739077,1745406681409,-500.0,0.00022098,2]
[358739078,1745406681418,-500.0,0.00022098,2]
[358739079,1745406681427,-500.0,0.00022098,2]
[358739080,1745406681437,-500.0,0.00022098,2]
[358739081,1745406681446,-500.0,0.00022098,2]
[358739082,1745406681456,-500.0,0.00022098,2]
[358739083,1745406681466,-500.0,0.00022098,2]
[358739084,1745406681475,-500.11,0.00022098,2]
[358739085,1745406681485,-500.0,0.00022098,2]
[358739086,1745406681495,-500.0,0.00022098,2]
[358739087,1745406681505,-500.0,0.00022098,2]
[358739088,1745406681516,-531.44,0.00022098,2]
[358739089,1745406681526,-500.0,0.00022098,2]
[358739090,1745406681535,-500.0,0.00022098,2]
[358739091,1745406681545,-500.0,0.00022098,2]
[358739092,1745406681554,-544.88,0.00022098,2]
[358739093,1745406681563,-500.0,0.00022098,2]
[358739094,1745406681572,-500.0,0.00022098,2]
[358739095,1745406681582,-511.36978772,0.00022098,2]
[358739096,1745406681592,-2820.05,0.00022098,2]
[358739097,1745406681602,-449.59398181,0.00022098,2]
[358739098,1745406681611,-500.0,0.00022098,2]
[358739099,1745406681621,-558.75,0.00022098,2]
[358739100,1745406681630,-508.61115043,0.00022098,2]
[358739101,1745406681639,-463.7840713,0.00022098,2]
[358739102,1745406681648,-583.98,0.00022098,2]
[358739103,1745406681657,-500.0,0.00022098,2]
[358739104,1745406681666,-225.15,0.00022098,2]
[358739105,1745406681676,-500.0,0.00022098,2]
[358739106,1745406681685,-1535.69,0.00022098,2]
[358739107,1745406681695,-500.0,0.00022098,2]
[358739108,1745406681704,-518.39511742,0.00022098,2]
[358739109,1745406681713,-500.0,0.00022098,2]
[358739110,1745406681723,-500.0,0.00022098,2]
[358739111,1745406681732,-500.0,0.00022098,2]
[358739112,1745406681741,-500.0,0.00022098,2]
[358739113,1745406681751,-500.0,0.00022098,2]
[358739114,1745406681760,-510.15633282,0.00022098,2]
[358739115,1745406681769,-500.0,0.00022098,2]
[358739116,1745406681780,-500.0,0.00022098,2]
[358739117,1745406681789,-500.0,0.00022098,2]
[358739118,1745406681798,-500.0,0.00022098,2]
[358739119,1745406681807,-500.0,0.00022098,2]
[358739120,1745406681817,-500.0,0.00022098,2]
[358739121,1745406681826,-500.0,0.00022098,2]
[358739122,1745406681836,-151.0,0.00022098,7]
[358739123,1745406681845,-612.29,0.00022098,2]
[358739124,1745406681855,-500.0,0.00022098,2]
[358739125,1745406681864,-500.0,0.00022098,2]
[358739126,1745406681873,-500.0,0.00022098,2]
[358739127,1745406681883,-3671.34,0.00022098,2]
[358739128,1745406681892,-500.0,0.00022098,2]
[358739129,1745406681904,-500.0,0.00022098,2]
[358739130,1745406681914,-621.99557571,0.00022098,2]
[358739131,1745406681925,-329.01,0.00022098,2]
[358739132,1745406681935,-500.0,0.00022098,2]
[358739133,1745406681946,-500.0,0.00022098,2]
[358739134,1745406681957,-500.0,0.00022098,2]
[358739135,1745406681967,-461.47787114,0.00022098,2]
[358739136,1745406681976,-500.0,0.00022098,2]
[358739137,1745406681985,-816.63,0.000221,2]
[358739138,1745406681995,-500.0,0.000221,2]
[358739139,1745406682005,-500.0,0.000221,2]
[358739140,1745406682015,-543.35,0.000221,2]
[358739141,1745406682025,-500.0,0.000221,2]
[358739142,1745406682035,-500.0,0.000221,2]
[358739143,1745406682045,-787.01,0.000221,2]
[358739144,1745406682054,-500.0,0.000221,2]
[358739145,1745406682064,-500.0,0.000221,2]
[358739146,1745406682074,-500.0,0.000221,2]
[358739147,1745406682084,-500.0,0.000221,2]
[358739148,1745406682093,-500.0,0.000221,2]
[358739149,1745406682103,-517.81,0.00022101,2]
[358739150,1745406682113,-500.0,0.00022101,2]
[358739151,1745406682123,-500.0,0.00022103,2]
[358739152,1745406682132,-500.0,0.00022103,2]
[358739153,1745406682141,-569.64429845,0.00022103,2]
[358739154,1745406682151,-500.0,0.00022103,2]
[358739155,1745406682162,-495.0,0.00022103,2]
[358739156,1745406682175,-500.0,0.00022103,2]
[358739157,1745406682184,-500.0,0.00022103,2]
[358739158,1745406682194,-500.0,0.00022103,2]
[358739159,1745406682205,-377.62348034,0.00022103,2]
[358739160,1745406682214,-239.69,0.00022103,2]
[358739161,1745406682224,-500.0,0.00022103,2]
[358739162,1745406682234,-500.0,0.00022103,2]
[358739163,1745406682245,-500.0,0.00022103,2]
[358739164,1745406682255,-500.0,0.00022103,2]
[358739165,1745406682266,-500.0,0.00022103,2]
[358739166,1745406682276,-151.0,0.00022192,2]
[358739167,1745406682285,-2000.0,0.00022218,4]
[358739168,1745406682294,-500.0,0.0002237,2]
[358739169,1745406682304,-595.07,0.0002237,2]
[358739170,1745406682314,-500.0,0.0002237,2]
[358739171,1745406682323,-500.0,0.0002237,2]
[358739172,1745406682333,-1233.74,0.0002237,2]
[358739173,1745406682344,-500.0,0.0002237,2]
[358739174,1745406682354,-500.0,0.0002237,2]
[358739175,1745406682363,-1063.73,0.0002237,2]
[358739176,1745406682374,-500.0,0.0002237,2]
[358739177,1745406682385,-500.0,0.0002237,2]
[358739178,1745406682394,-500.0,0.0002237,2]
[358739179,1745406682404,-184.43329656,0.0002237,2]
[358739180,1745406682413,-1565.82,0.0002237,2]
[358739181,1745406682423,-507.97,0.0002237,2]
[358739182,1745406682432,-2600.73,0.0002237,2]
[358739183,1745406682442,-500.0,0.0002237,2]
[358739184,1745406682451,-500.0,0.0002237,2]
[358739185,1745406682460,-361.68297537,0.0002237,2]
[358739186,1745406682470,-500.0,0.0002237,2]
[358739187,1745406682480,-500.0,0.0002237,2]
[358739188,1745406682490,-500.0,0.0002237,2]
[358739189,1745406682500,-6139.88,0.0002237,2]
[358739190,1745406682509,-3428.99,0.0002237,2]
[358739191,1745406682519,-610.39,0.0002237,2]
[358739192,1745406682530,-500.0,0.0002237,2]
[358739193,1745406682542,-500.0,0.0002237,2]
[358739194,1745406682552,-500.0,0.0002237,2]
[358739195,1745406682561,-582.2,0.0002237,2]
[358739196,1745406682571,-500.0,0.0002237,2]
[358739197,1745406682581,-500.0,0.0002237,2]
[358739198,1745406682590,-2287.57,0.0002237,2]
[358739199,1745406682601,-500.0,0.0002237,2]
[358739200,1745406682611,-500.0,0.00022371,2]
[358739201,1745406682621,-507.33,0.00022371,2]
[358739202,1745406682630,-500.0,0.00022371,2]
[358739203,1745406682639,-500.0,0.00022371,2]
[358739204,1745406682649,-1754.3,0.00022371,2]
[358739205,1745406682659,-500.0,0.00022371,2]
[358739206,1745406682669,-871.23,0.00022371,2]
[358739207,1745406682678,-500.0,0.00022372,2]
[358739208,1745406682688,-500.0,0.00022372,2]
[358739209,1745406682697,-204.59,0.00022372,2]
[358739210,1745406682707,-500.0,0.00022372,2]
[358739211,1745406682716,-500.0,0.00022372,2]
[358739212,1745406682726,-500.0,0.00022372,2]
[358739213,1745406682735,-500.0,0.00022372,2]
[358739214,1745406682744,-539.11,0.00022372,2]
[358739215,1745406682754,-230.53,0.00022372,2]
[358739216,1745406682763,-500.0,0.00022372,2]
[358739217,1745406682772,-512.74,0.00022372,2]
[358739218,1745406682782,-500.0,0.00022372,2]
[358739219,1745406682791,-500.0,0.00022372,2]
[358739220,1745406682800,-500.0,0.00022372,2]
[358739221,1745406682810,-500.0,0.00022372,2]
[358739222,1745406682820,-500.0,0.00022372,2]
[358739223,1745406682829,-500.0,0.00022372,2]
[358739224,1745406682841,-500.0,0.00022372,2]
[358739225,1745406682851,-500.0,0.00022372,2]
[358739226,1745406682861,-500.0,0.00022372,2]
[358739227,1745406682870,-500.0,0.00022372,2]
[358739228,1745406682880,-500.0,0.00022372,2]